[Event "Titled Tuesday Blitz October 18 Late 2022"]
[White "Bortnyk, Mykola"]
[Black "Sadhwani, Raunak"]
[WhiteFideId "14120836"]
[BlackFideId "35093487"]
[WhiteElo "2582"]
[BlackElo "2656"]
[Result "1-0"]
[Round "10"]
[TimeControl "180+1"]
[Date "2022.10.18"]
[WhiteClock "0:00:09"]
[BlackClock "0:00:06"]

1. e4 {[%clk 0:03:00]}  c5 {[%clk 0:02:52]} 2. c3 {[%clk 0:03:01]}  Nf6 {[%clk 0:02:46]} 3. e5 {[%clk 0:03:01]}  Nd5 {[%clk 0:02:47]} 4. Nf3 {[%clk 0:03:01]}  e6 {[%clk 0:02:44]} 5. d4 {[%clk 0:03:01]}  cxd4 {[%clk 0:02:43]} 6. cxd4 {[%clk 0:03:02]}  d6 {[%clk 0:02:43]} 7. Bc4 {[%clk 0:03:03]}  Nc6 {[%clk 0:02:41]} 8. O-O {[%clk 0:03:03]}  Be7 {[%clk 0:02:42]} 9. Qe2 {[%clk 0:03:03]}  O-O {[%clk 0:02:41]} 10. Nc3 {[%clk 0:03:04]}  Nxc3 {[%clk 0:02:38]} 11. bxc3 {[%clk 0:03:05]}  b6 {[%clk 0:02:35]} 12. exd6 {[%clk 0:02:59]}  Bxd6 {[%clk 0:02:35]} 13. Qe4 {[%clk 0:02:46]}  Bb7 {[%clk 0:02:28]} 14. Ng5 {[%clk 0:02:44]}  g6 {[%clk 0:02:24]} 15. Qh4 {[%clk 0:02:31]}  h5 {[%clk 0:02:22]} 16. Qh3 {[%clk 0:02:29]}  Ne7 {[%clk 0:01:22]} 17. g4 {[%clk 0:02:21]}  Qc8 {[%clk 0:01:19]} 18. gxh5 {[%clk 0:02:09]}  e5 {[%clk 0:01:17]} 19. Be6 {[%clk 0:01:50]}  fxe6 {[%clk 0:00:40]} 20. hxg6 {[%clk 0:01:50]}  Kg7 {[%clk 0:00:41]} 21. Qh7+ {[%clk 0:01:20]}  Kf6 {[%clk 0:00:41]} 22. g7 {[%clk 0:01:14]}  Rg8 {[%clk 0:00:41]} 23. Qh6+ {[%clk 0:00:56]}  Ng6 {[%clk 0:00:34]} 24. f4 {[%clk 0:00:49]}  e4 {[%clk 0:00:24]} 25. Nh7+ {[%clk 0:00:38]}  Kf7 {[%clk 0:00:24]} 26. f5 {[%clk 0:00:26]}  exf5 {[%clk 0:00:25]} 27. Qh5 {[%clk 0:00:25]}  Rxg7 {[%clk 0:00:18]} 28. Rxf5+ {[%clk 0:00:26]}  Ke8 {[%clk 0:00:17]} 29. Bh6 {[%clk 0:00:24]}  Qxc3 {[%clk 0:00:14]} 30. Bxg7 {[%clk 0:00:18]}  Qxa1+ {[%clk 0:00:14]} 31. Rf1 {[%clk 0:00:19]}  Qxa2 {[%clk 0:00:08]} 32. Qxg6+ {[%clk 0:00:19]}  Kd7 {[%clk 0:00:09]} 33. Rf7+ {[%clk 0:00:18]}  Kc6 {[%clk 0:00:08]} 34. Qxe4+ {[%clk 0:00:18]}  Qd5 {[%clk 0:00:09]} 35. Qxd5+ {[%clk 0:00:13]}  Kxd5 {[%clk 0:00:10]} 36. Rxb7 {[%clk 0:00:13]}  Kc6 {[%clk 0:00:11]} 37. Rf7 {[%clk 0:00:12]}  a5 {[%clk 0:00:11]} 38. Nf6 {[%clk 0:00:12]}  a4 {[%clk 0:00:11]} 39. d5+ {[%clk 0:00:13]}  Kb5 {[%clk 0:00:07]} 40. Ne4 {[%clk 0:00:13]}  Bb4 {[%clk 0:00:08]} 41. d6 {[%clk 0:00:12]}  a3 {[%clk 0:00:06]} 42. d7 {[%clk 0:00:11]}  a2 {[%clk 0:00:07]} 43. Ba1 {[%clk 0:00:11]}  Kc6 {[%clk 0:00:07]} 44. Kf2 {[%clk 0:00:11]}  Rd8 {[%clk 0:00:06]} 45. Nf6 {[%clk 0:00:09]}  Be7 {[%clk 0:00:06]} 46. Rxe7 {[%clk 0:00:09]} 1-0


[Site "https://www.chess.com"]

[Event "Titled Tuesday Blitz October 18 Late 2022"]
[White "Bulgurlu, Okan"]
[Black "Melikhov, Evgeny V."]
[WhiteFideId "6352316"]
[BlackFideId "4122046"]
[WhiteElo "2196"]
[BlackElo "2169"]
[Result "0-1"]
[Round "10"]
[TimeControl "180+1"]
[Date "2022.10.19"]
[WhiteClock "0:01:34"]
[BlackClock "0:01:03"]

1. Nf3 {[%clk 0:03:00]}  f5 {[%clk 0:02:59]} 2. b3 {[%clk 0:03:00]}  d6 {[%clk 0:02:58]} 3. Bb2 {[%clk 0:03:01]}  e5 {[%clk 0:02:57]} 4. e3 {[%clk 0:03:02]}  Nf6 {[%clk 0:02:55]} 5. Be2 {[%clk 0:03:02]}  g6 {[%clk 0:02:51]} 6. O-O {[%clk 0:03:02]}  Bg7 {[%clk 0:02:51]} 7. d4 {[%clk 0:03:02]}  e4 {[%clk 0:02:50]} 8. Ng5 {[%clk 0:03:02]}  O-O {[%clk 0:02:49]} 9. h4 {[%clk 0:03:00]}  c6 {[%clk 0:02:43]} 10. Nd2 {[%clk 0:02:58]}  a5 {[%clk 0:02:39]} 11. c4 {[%clk 0:02:56]}  Na6 {[%clk 0:02:38]} 12. Rc1 {[%clk 0:02:53]}  Nc7 {[%clk 0:02:35]} 13. d5 {[%clk 0:02:51]}  c5 {[%clk 0:02:26]} 14. f3 {[%clk 0:02:49]}  exf3 {[%clk 0:02:25]} 15. Ndxf3 {[%clk 0:02:47]}  Qe7 {[%clk 0:02:18]} 16. Qd3 {[%clk 0:02:41]}  Bd7 {[%clk 0:02:17]} 17. Rfe1 {[%clk 0:02:39]}  Rae8 {[%clk 0:02:16]} 18. Bd1 {[%clk 0:02:38]}  h6 {[%clk 0:02:06]} 19. Nh3 {[%clk 0:02:36]}  Ne4 {[%clk 0:02:03]} 20. Nf4 {[%clk 0:02:33]}  Bxb2 {[%clk 0:01:57]} 21. Nxg6 {[%clk 0:02:30]}  Qg7 {[%clk 0:01:55]} 22. Nxf8 {[%clk 0:02:28]}  Bxc1 {[%clk 0:01:45]} 23. Nxd7 {[%clk 0:02:28]}  Qxd7 {[%clk 0:01:43]} 24. Bc2 {[%clk 0:02:25]}  Bb2 {[%clk 0:01:41]} 25. Nd2 {[%clk 0:02:23]}  Bg7 {[%clk 0:01:34]} 26. Nxe4 {[%clk 0:02:09]}  fxe4 {[%clk 0:01:33]} 27. Qe2 {[%clk 0:02:09]}  Rf8 {[%clk 0:01:26]} 28. Qh5 {[%clk 0:02:10]}  Qf5 {[%clk 0:01:24]} 29. Qxf5 {[%clk 0:02:09]}  Rxf5 {[%clk 0:01:24]} 30. Bxe4 {[%clk 0:02:10]}  Re5 {[%clk 0:01:22]} 31. Bf3 {[%clk 0:02:09]}  Ne8 {[%clk 0:01:22]} 32. e4 {[%clk 0:02:09]}  Nf6 {[%clk 0:01:21]} 33. Kf2 {[%clk 0:02:09]}  Nd7 {[%clk 0:01:20]} 34. Ke3 {[%clk 0:02:09]}  Re7 {[%clk 0:01:20]} 35. g4 {[%clk 0:02:08]}  Bd4+ {[%clk 0:01:19]} 36. Kd2 {[%clk 0:02:05]}  Ne5 {[%clk 0:01:19]} 37. Bd1 {[%clk 0:02:06]}  Rf7 {[%clk 0:01:19]} 38. Be2 {[%clk 0:02:04]}  Rf2 {[%clk 0:01:18]} 39. Rh1 {[%clk 0:01:56]}  Kg7 {[%clk 0:01:13]} 40. g5 {[%clk 0:01:54]}  h5 {[%clk 0:01:10]} 41. Ke1 {[%clk 0:01:51]}  Kg6 {[%clk 0:01:08]} 42. Rh3 {[%clk 0:01:46]}  Rg2 {[%clk 0:01:03]} 43. Kf1 {[%clk 0:01:34]}  Rg1# {[%clk 0:01:03]} 0-1


[Site "https://www.chess.com"]

[Event "Titled Tuesday Blitz October 18 Late 2022"]
[White "Can, Melih Kaan"]
[Black "Wiegmann, Sascha"]
[WhiteFideId "6317383"]
[BlackFideId "4682041"]
[WhiteElo "2029"]
[BlackElo "2303"]
[Result "1-0"]
[Round "10"]
[TimeControl "180+1"]
[Date "2022.10.19"]
[WhiteClock "0:00:54"]
[BlackClock "0:00:17"]

1. d4 {[%clk 0:03:00]}  Nf6 {[%clk 0:02:58]} 2. c4 {[%clk 0:03:01]}  g6 {[%clk 0:02:57]} 3. Nc3 {[%clk 0:03:01]}  Bg7 {[%clk 0:02:58]} 4. e4 {[%clk 0:03:02]}  O-O {[%clk 0:02:59]} 5. Nf3 {[%clk 0:03:02]}  d6 {[%clk 0:02:59]} 6. Be2 {[%clk 0:03:02]}  e5 {[%clk 0:03:00]} 7. O-O {[%clk 0:03:02]}  Nc6 {[%clk 0:03:00]} 8. d5 {[%clk 0:03:03]}  Ne7 {[%clk 0:03:01]} 9. Ne1 {[%clk 0:03:02]}  Nd7 {[%clk 0:03:01]} 10. Be3 {[%clk 0:03:02]}  f5 {[%clk 0:02:59]} 11. f3 {[%clk 0:03:02]}  f4 {[%clk 0:02:59]} 12. Bf2 {[%clk 0:03:03]}  g5 {[%clk 0:02:59]} 13. Nd3 {[%clk 0:03:04]}  Rf7 {[%clk 0:02:59]} 14. c5 {[%clk 0:03:03]}  Ng6 {[%clk 0:02:54]} 15. Rc1 {[%clk 0:03:00]}  Nf6 {[%clk 0:02:54]} 16. cxd6 {[%clk 0:02:51]}  cxd6 {[%clk 0:02:55]} 17. Nb5 {[%clk 0:02:51]}  h5 {[%clk 0:02:31]} 18. Qc2 {[%clk 0:02:29]}  g4 {[%clk 0:01:48]} 19. Nc7 {[%clk 0:02:23]}  Rb8 {[%clk 0:01:34]} 20. Ne6 {[%clk 0:02:21]}  Bxe6 {[%clk 0:01:16]} 21. dxe6 {[%clk 0:02:22]}  Re7 {[%clk 0:01:16]} 22. Nb4 {[%clk 0:02:16]}  g3 {[%clk 0:01:11]} 23. hxg3 {[%clk 0:01:52]}  fxg3 {[%clk 0:01:12]} 24. Bxg3 {[%clk 0:01:53]}  Bh6 {[%clk 0:01:09]} 25. Nd5 {[%clk 0:01:45]}  Nxd5 {[%clk 0:01:03]} 26. exd5 {[%clk 0:01:46]}  Rg7 {[%clk 0:01:03]} 27. Qf5 {[%clk 0:01:32]}  h4 {[%clk 0:00:39]} 28. Bh2 {[%clk 0:01:25]}  Qb6+ {[%clk 0:00:23]} 29. Kh1 {[%clk 0:01:22]}  Bxc1 {[%clk 0:00:21]} 30. Rxc1 {[%clk 0:01:21]}  Qxb2 {[%clk 0:00:21]} 31. Qc2 {[%clk 0:01:18]}  Qb6 {[%clk 0:00:19]} 32. Bd3 {[%clk 0:01:12]}  Nf4 {[%clk 0:00:18]} 33. Bxf4 {[%clk 0:01:12]}  exf4 {[%clk 0:00:19]} 34. Bf5 {[%clk 0:01:11]}  Qd4 {[%clk 0:00:18]} 35. Qc8+ {[%clk 0:00:53]}  Rxc8 {[%clk 0:00:17]} 36. Rxc8# {[%clk 0:00:54]} 1-0


[Site "https://www.chess.com"]

[Event "Titled Tuesday Blitz October 18 Late 2022"]
[White "Carbone, Diego"]
[Black "Sernecki, Franciszek"]
[WhiteFideId "3002179"]
[BlackFideId "1169297"]
[WhiteElo "2243"]
[BlackElo "2209"]
[Result "0-1"]
[Round "10"]
[TimeControl "180+1"]
[Date "2022.10.19"]
[WhiteClock "0:00:16"]
[BlackClock "0:01:02"]

1. d4 {[%clk 0:03:00]}  d5 {[%clk 0:02:59]} 2. c4 {[%clk 0:03:01]}  Nc6 {[%clk 0:02:59]} 3. Nc3 {[%clk 0:03:00]}  e5 {[%clk 0:02:59]} 4. cxd5 {[%clk 0:02:54]}  Nxd4 {[%clk 0:02:58]} 5. e3 {[%clk 0:02:39]}  Nf5 {[%clk 0:02:58]} 6. Bb5+ {[%clk 0:02:37]}  Bd7 {[%clk 0:02:57]} 7. Qa4 {[%clk 0:02:37]}  Nd6 {[%clk 0:02:54]} 8. Bxd7+ {[%clk 0:02:32]}  Qxd7 {[%clk 0:02:55]} 9. Nf3 {[%clk 0:02:32]}  f6 {[%clk 0:02:52]} 10. Bd2 {[%clk 0:02:30]}  Qxa4 {[%clk 0:02:51]} 11. Nxa4 {[%clk 0:02:31]}  Ne4 {[%clk 0:02:48]} 12. O-O {[%clk 0:02:25]}  O-O-O {[%clk 0:02:48]} 13. Nc3 {[%clk 0:01:27]}  Nxc3 {[%clk 0:02:46]} 14. Bxc3 {[%clk 0:01:28]}  Rxd5 {[%clk 0:02:45]} 15. e4 {[%clk 0:01:26]}  Rd7 {[%clk 0:02:44]} 16. Rfd1 {[%clk 0:01:27]}  Rxd1+ {[%clk 0:02:43]} 17. Rxd1 {[%clk 0:01:27]}  Bd6 {[%clk 0:02:38]} 18. Kf1 {[%clk 0:01:27]}  Ne7 {[%clk 0:02:38]} 19. Ke2 {[%clk 0:01:26]}  Rd8 {[%clk 0:02:38]} 20. h4 {[%clk 0:01:21]}  Bc5 {[%clk 0:02:38]} 21. Rxd8+ {[%clk 0:01:17]}  Kxd8 {[%clk 0:02:39]} 22. b4 {[%clk 0:01:17]}  Bb6 {[%clk 0:02:37]} 23. a4 {[%clk 0:01:17]}  a6 {[%clk 0:02:37]} 24. h5 {[%clk 0:01:15]}  Kd7 {[%clk 0:02:34]} 25. g4 {[%clk 0:01:15]}  Ke6 {[%clk 0:02:32]} 26. g5 {[%clk 0:01:08]}  Nc6 {[%clk 0:02:30]} 27. gxf6 {[%clk 0:01:04]}  gxf6 {[%clk 0:02:29]} 28. Bd2 {[%clk 0:01:05]}  Nd4+ {[%clk 0:02:28]} 29. Nxd4+ {[%clk 0:01:02]}  Bxd4 {[%clk 0:02:29]} 30. a5 {[%clk 0:01:03]}  b5 {[%clk 0:02:24]} 31. axb6 {[%clk 0:00:50]}  cxb6 {[%clk 0:02:23]} 32. f3 {[%clk 0:00:51]}  Kd6 {[%clk 0:02:13]} 33. Kd3 {[%clk 0:00:50]}  Bf2 {[%clk 0:02:09]} 34. Bc1 {[%clk 0:00:47]}  Bg3 {[%clk 0:02:09]} 35. Bd2 {[%clk 0:00:47]}  Bf4 {[%clk 0:02:05]} 36. Be1 {[%clk 0:00:46]}  Bg5 {[%clk 0:02:03]} 37. b5 {[%clk 0:00:44]}  axb5 {[%clk 0:01:55]} 38. Kc3 {[%clk 0:00:44]}  Be3 {[%clk 0:01:51]} 39. Bh4 {[%clk 0:00:41]}  Kc5 {[%clk 0:01:16]} 40. Bxf6 {[%clk 0:00:38]}  b4+ {[%clk 0:01:17]} 41. Kd3 {[%clk 0:00:30]}  Bf4 {[%clk 0:01:09]} 42. Bh4 {[%clk 0:00:29]}  Kb5 {[%clk 0:01:08]} 43. Bf2 {[%clk 0:00:29]}  Ka5 {[%clk 0:01:05]} 44. Kc4 {[%clk 0:00:24]}  Ka4 {[%clk 0:01:01]} 45. Be1 {[%clk 0:00:21]}  b5+ {[%clk 0:01:00]} 46. Kd5 {[%clk 0:00:19]}  b3 {[%clk 0:01:00]} 47. Bc3 {[%clk 0:00:16]}  Ka3 {[%clk 0:01:00]} 48. Kc5 {[%clk 0:00:16]}  b2 {[%clk 0:00:57]} 49. Bxb2+ {[%clk 0:00:14]}  Kxb2 {[%clk 0:00:58]} 50. Kxb5 {[%clk 0:00:15]}  h6 {[%clk 0:00:58]} 51. Kc5 {[%clk 0:00:15]}  Kc2 {[%clk 0:00:59]} 52. Kd5 {[%clk 0:00:15]}  Kd2 {[%clk 0:01:00]} 53. Ke6 {[%clk 0:00:15]}  Ke3 {[%clk 0:01:01]} 54. Kf5 {[%clk 0:00:16]}  Kxf3 {[%clk 0:01:02]} 0-1


[Site "https://www.chess.com"]

[Event "Titled Tuesday Blitz October 18 Late 2022"]
[White "Celestino, Rafael Teixeira"]
[Black "Adewumi, Tanitoluwa"]
[WhiteFideId "2108925"]
[BlackFideId "30966396"]
[WhiteElo "2394"]
[BlackElo "2534"]
[Result "0-1"]
[Round "10"]
[TimeControl "180+1"]
[Date "2022.10.19"]
[WhiteClock "0:00:02"]
[BlackClock "0:00:05"]

1. e4 {[%clk 0:03:00]}  c5 {[%clk 0:02:58]} 2. Nf3 {[%clk 0:03:00]}  e6 {[%clk 0:02:57]} 3. d4 {[%clk 0:03:01]}  cxd4 {[%clk 0:02:57]} 4. Nxd4 {[%clk 0:03:02]}  Nc6 {[%clk 0:02:57]} 5. Nc3 {[%clk 0:03:02]}  Qc7 {[%clk 0:02:57]} 6. Ndb5 {[%clk 0:03:02]}  Qb8 {[%clk 0:02:54]} 7. Be3 {[%clk 0:03:01]}  a6 {[%clk 0:02:54]} 8. Nd4 {[%clk 0:03:01]}  Nf6 {[%clk 0:02:52]} 9. Bd3 {[%clk 0:02:44]}  Be7 {[%clk 0:02:34]} 10. O-O {[%clk 0:02:41]}  h5 {[%clk 0:02:30]} 11. h3 {[%clk 0:02:35]}  b5 {[%clk 0:02:24]} 12. f4 {[%clk 0:02:18]}  Bc5 {[%clk 0:02:07]} 13. Nce2 {[%clk 0:02:03]}  Qa7 {[%clk 0:01:47]} 14. c3 {[%clk 0:02:00]}  Bb7 {[%clk 0:01:45]} 15. Kh1 {[%clk 0:01:57]}  Nxd4 {[%clk 0:01:41]} 16. cxd4 {[%clk 0:01:51]}  Bb6 {[%clk 0:01:41]} 17. a4 {[%clk 0:01:43]}  bxa4 {[%clk 0:01:13]} 18. Qxa4 {[%clk 0:01:41]}  Nxe4 {[%clk 0:01:09]} 19. f5 {[%clk 0:01:28]}  O-O {[%clk 0:00:31]} 20. Rf4 {[%clk 0:01:05]}  exf5 {[%clk 0:00:27]} 21. Rxf5 {[%clk 0:01:04]}  Rae8 {[%clk 0:00:25]} 22. Rxh5 {[%clk 0:00:54]}  g6 {[%clk 0:00:20]} 23. Rh4 {[%clk 0:00:45]}  Ng3+ {[%clk 0:00:14]} 24. Nxg3 {[%clk 0:00:43]}  Rxe3 {[%clk 0:00:15]} 25. Nf5 {[%clk 0:00:25]}  Rxd3 {[%clk 0:00:13]} 26. Ne7+ {[%clk 0:00:10]}  Kg7 {[%clk 0:00:12]} 27. d5 {[%clk 0:00:09]}  Rd4 {[%clk 0:00:11]} 28. Rxd4 {[%clk 0:00:07]}  Bxd4 {[%clk 0:00:12]} 29. Rf1 {[%clk 0:00:05]}  Qc5 {[%clk 0:00:09]} 30. Qxd7 {[%clk 0:00:04]}  Bf6 {[%clk 0:00:05]} 31. d6 {[%clk 0:00:02]}  Bxe7 {[%clk 0:00:04]} 32. Qxe7 {[%clk 0:00:02]}  Qd5 {[%clk 0:00:04]} 33. Qf6+ {[%clk 0:00:02]}  Kg8 {[%clk 0:00:04]} 34. Rf2 {[%clk 0:00:02]}  Re8 {[%clk 0:00:05]} 35. d7 {[%clk 0:00:02]}  Qxd7 {[%clk 0:00:05]} 0-1


[Site "https://www.chess.com"]

[Event "Titled Tuesday Blitz October 18 Late 2022"]
[White "Curtis, John"]
[Black "Rego, Pedro Filipe"]
[WhiteFideId "3200256"]
[BlackFideId "1904310"]
[WhiteElo "2203"]
[BlackElo "2200"]
[Result "0-1"]
[Round "10"]
[TimeControl "180+1"]
[Date "2022.10.19"]
[WhiteClock "0:00:21"]
[BlackClock "0:00:14"]

1. e4 {[%clk 0:02:58]}  c5 {[%clk 0:02:59]} 2. Nf3 {[%clk 0:02:54]}  d6 {[%clk 0:02:58]} 3. d4 {[%clk 0:02:54]}  cxd4 {[%clk 0:02:59]} 4. Nxd4 {[%clk 0:02:53]}  Nf6 {[%clk 0:03:00]} 5. Nc3 {[%clk 0:02:52]}  Nc6 {[%clk 0:03:00]} 6. Bc4 {[%clk 0:02:47]}  Qb6 {[%clk 0:03:00]} 7. Ndb5 {[%clk 0:02:36]}  Bd7 {[%clk 0:02:45]} 8. Be3 {[%clk 0:02:30]}  Qa5 {[%clk 0:02:44]} 9. Bd2 {[%clk 0:02:27]}  a6 {[%clk 0:02:41]} 10. Nd5 {[%clk 0:02:24]}  Nxd5 {[%clk 0:02:20]} 11. exd5 {[%clk 0:02:06]}  Qb6 {[%clk 0:01:53]} 12. dxc6 {[%clk 0:02:05]}  Qxc6 {[%clk 0:01:50]} 13. Bd5 {[%clk 0:01:37]}  Qxb5 {[%clk 0:01:43]} 14. Qf3 {[%clk 0:01:37]}  e6 {[%clk 0:01:36]} 15. Bb3 {[%clk 0:01:31]}  Qe5+ {[%clk 0:01:31]} 16. Be3 {[%clk 0:01:26]}  Bc6 {[%clk 0:01:26]} 17. Qg4 {[%clk 0:01:23]}  Qxb2 {[%clk 0:01:23]} 18. O-O {[%clk 0:01:21]}  Qf6 {[%clk 0:01:15]} 19. Rfe1 {[%clk 0:01:11]}  Qg6 {[%clk 0:01:12]} 20. Bg5 {[%clk 0:01:08]}  Be7 {[%clk 0:00:53]} 21. h4 {[%clk 0:01:03]}  h6 {[%clk 0:00:49]} 22. Bxe6 {[%clk 0:01:01]}  hxg5 {[%clk 0:00:46]} 23. Bb3 {[%clk 0:00:42]}  Rxh4 {[%clk 0:00:42]} 24. Qe2 {[%clk 0:00:42]}  Re4 {[%clk 0:00:36]} 25. Qd2 {[%clk 0:00:42]}  Qf5 {[%clk 0:00:32]} 26. f3 {[%clk 0:00:42]}  Re5 {[%clk 0:00:27]} 27. Rxe5 {[%clk 0:00:40]}  Qxe5 {[%clk 0:00:26]} 28. Re1 {[%clk 0:00:39]}  Qf6 {[%clk 0:00:22]} 29. Bc4 {[%clk 0:00:33]}  O-O-O {[%clk 0:00:21]} 30. Qe3 {[%clk 0:00:25]}  Re8 {[%clk 0:00:18]} 31. Qa7 {[%clk 0:00:24]}  Bd8 {[%clk 0:00:14]} 32. Bxa6 {[%clk 0:00:24]}  Bc7 {[%clk 0:00:14]} 33. Rxe8+ {[%clk 0:00:22]}  Bxe8 {[%clk 0:00:14]} 34. Qxb7+ {[%clk 0:00:21]}  Kd8 {[%clk 0:00:15]} 35. Qa8+ {[%clk 0:00:20]}  Ke7 {[%clk 0:00:14]} 36. Qe4+ {[%clk 0:00:20]}  Qe5 {[%clk 0:00:14]} 37. Qb7 {[%clk 0:00:19]}  Qc5+ {[%clk 0:00:13]} 38. Kf1 {[%clk 0:00:19]}  Bd7 {[%clk 0:00:14]} 39. Ke1 {[%clk 0:00:18]}  Be6 {[%clk 0:00:14]} 40. g4 {[%clk 0:00:18]}  Kf6 {[%clk 0:00:14]} 41. Bd3 {[%clk 0:00:16]}  Ba5+ {[%clk 0:00:14]} 42. Ke2 {[%clk 0:00:15]}  Bc4 {[%clk 0:00:12]} 43. Qb2+ {[%clk 0:00:15]}  Ke7 {[%clk 0:00:11]} 44. Qxg7 {[%clk 0:00:14]}  Bxd3+ {[%clk 0:00:11]} 45. cxd3 {[%clk 0:00:14]}  Qe5+ {[%clk 0:00:11]} 46. Qxe5+ {[%clk 0:00:13]}  dxe5 {[%clk 0:00:12]} 47. Ke3 {[%clk 0:00:14]}  Kd6 {[%clk 0:00:12]} 48. Ke4 {[%clk 0:00:15]}  Bc3 {[%clk 0:00:12]} 49. a4 {[%clk 0:00:14]}  Bd2 {[%clk 0:00:12]} 50. d4 {[%clk 0:00:12]}  exd4 {[%clk 0:00:11]} 51. Kxd4 {[%clk 0:00:13]}  Bf4 {[%clk 0:00:11]} 52. Ke4 {[%clk 0:00:13]}  Kc6 {[%clk 0:00:11]} 53. Kf5 {[%clk 0:00:12]}  Kb6 {[%clk 0:00:11]} 54. Kf6 {[%clk 0:00:12]}  Ka5 {[%clk 0:00:11]} 55. Kxf7 {[%clk 0:00:13]}  Kxa4 {[%clk 0:00:11]} 56. Kf6 {[%clk 0:00:14]}  Kb4 {[%clk 0:00:11]} 57. Kf5 {[%clk 0:00:15]}  Kc3 {[%clk 0:00:12]} 58. Ke4 {[%clk 0:00:16]}  Kd2 {[%clk 0:00:12]} 59. Kd4 {[%clk 0:00:15]}  Ke2 {[%clk 0:00:13]} 60. Ke4 {[%clk 0:00:16]}  Kf2 {[%clk 0:00:14]} 61. Kf5 {[%clk 0:00:16]}  Kxf3 {[%clk 0:00:14]} 62. Kg6 {[%clk 0:00:17]}  Kxg4 {[%clk 0:00:14]} 63. Kf6 {[%clk 0:00:16]}  Kf3 {[%clk 0:00:15]} 64. Ke6 {[%clk 0:00:17]}  g4 {[%clk 0:00:15]} 65. Kd5 {[%clk 0:00:18]}  g3 {[%clk 0:00:15]} 66. Kc4 {[%clk 0:00:19]}  g2 {[%clk 0:00:16]} 67. Kd3 {[%clk 0:00:20]}  g1=Q {[%clk 0:00:16]} 68. Kc2 {[%clk 0:00:20]}  Qe3 {[%clk 0:00:14]} 69. Kd1 {[%clk 0:00:21]}  Qe2# {[%clk 0:00:14]} 0-1


[Site "https://www.chess.com"]

[Event "Titled Tuesday Blitz October 18 Late 2022"]
[White "De La Colina, Nicolas"]
[Black "Hirneise, Jens"]
[WhiteFideId "30946921"]
[BlackFideId "24614734"]
[WhiteElo "2046"]
[BlackElo "2344"]
[Result "0-1"]
[Round "10"]
[TimeControl "180+1"]
[Date "2022.10.19"]
[WhiteClock "0:00:02"]
[BlackClock "0:01:13"]

1. Nf3 {[%clk 0:03:00]}  b6 {[%clk 0:02:59]} 2. e4 {[%clk 0:02:51]}  Bb7 {[%clk 0:03:00]} 3. Nc3 {[%clk 0:02:51]}  e6 {[%clk 0:02:59]} 4. d4 {[%clk 0:02:51]}  Bb4 {[%clk 0:02:52]} 5. Bd3 {[%clk 0:02:50]}  Nf6 {[%clk 0:02:49]} 6. Qe2 {[%clk 0:02:47]}  d5 {[%clk 0:02:49]} 7. exd5 {[%clk 0:02:21]}  Qxd5 {[%clk 0:02:45]} 8. O-O {[%clk 0:02:01]}  Qh5 {[%clk 0:02:27]} 9. Ne5 {[%clk 0:01:55]}  Qxe2 {[%clk 0:02:24]} 10. Nxe2 {[%clk 0:01:56]}  Bd6 {[%clk 0:02:21]} 11. Bf4 {[%clk 0:01:49]}  Nh5 {[%clk 0:02:15]} 12. Be3 {[%clk 0:01:45]}  Nf6 {[%clk 0:02:08]} 13. c3 {[%clk 0:01:33]}  Bxe5 {[%clk 0:02:00]} 14. dxe5 {[%clk 0:01:32]}  Nd5 {[%clk 0:02:01]} 15. Bd2 {[%clk 0:01:26]}  Nd7 {[%clk 0:02:00]} 16. f4 {[%clk 0:01:25]}  Nc5 {[%clk 0:01:59]} 17. Bc2 {[%clk 0:01:24]}  g6 {[%clk 0:01:56]} 18. Rad1 {[%clk 0:01:18]}  O-O-O {[%clk 0:01:53]} 19. Bc1 {[%clk 0:01:14]}  h5 {[%clk 0:01:52]} 20. a3 {[%clk 0:00:55]}  Ba6 {[%clk 0:01:52]} 21. Kf2 {[%clk 0:00:54]}  Ne7 {[%clk 0:01:48]} 22. Rfe1 {[%clk 0:00:44]}  Bd3 {[%clk 0:01:46]} 23. Nd4 {[%clk 0:00:27]}  Bxc2 {[%clk 0:01:44]} 24. Nxc2 {[%clk 0:00:26]}  Nd3+ {[%clk 0:01:45]} 25. Ke2 {[%clk 0:00:26]}  Nxe1 {[%clk 0:01:43]} 26. Rxe1 {[%clk 0:00:27]}  Nf5 {[%clk 0:01:42]} 27. g3 {[%clk 0:00:22]}  Rd7 {[%clk 0:01:35]} 28. a4 {[%clk 0:00:14]}  a5 {[%clk 0:01:31]} 29. Na3 {[%clk 0:00:14]}  Kb7 {[%clk 0:01:30]} 30. Nc4 {[%clk 0:00:13]}  Ka6 {[%clk 0:01:24]} 31. Na3 {[%clk 0:00:13]}  c6 {[%clk 0:01:24]} 32. Rg1 {[%clk 0:00:05]}  b5 {[%clk 0:01:23]} 33. axb5+ {[%clk 0:00:04]}  cxb5 {[%clk 0:01:24]} 34. Nc2 {[%clk 0:00:04]}  Rc8 {[%clk 0:01:21]} 35. Ne1 {[%clk 0:00:03]}  b4 {[%clk 0:01:21]} 36. cxb4 {[%clk 0:00:02]}  axb4 {[%clk 0:01:21]} 37. Nf3 {[%clk 0:00:02]}  Rc2+ {[%clk 0:01:20]} 38. Bd2 {[%clk 0:00:03]}  Nd4+ {[%clk 0:01:16]} 39. Nxd4 {[%clk 0:00:02]}  Rxd4 {[%clk 0:01:17]} 40. Ra1+ {[%clk 0:00:03]}  Kb5 {[%clk 0:01:17]} 41. Rd1 {[%clk 0:00:03]}  Ka4 {[%clk 0:01:14]} 42. Ke1 {[%clk 0:00:03]}  Kb3 {[%clk 0:01:13]} 43. Ke2 {[%clk 0:00:02]} 0-1


[Site "https://www.chess.com"]

[Event "Titled Tuesday Blitz October 18 Late 2022"]
[White "Domingo Nunez, Ruben"]
[Black "Mickiewicz, Piotr"]
[WhiteFideId "22245570"]
[BlackFideId "1114891"]
[WhiteElo "2406"]
[BlackElo "2246"]
[Result "1-0"]
[Round "10"]
[TimeControl "180+1"]
[Date "2022.10.19"]
[WhiteClock "0:00:02"]
[BlackClock "0:00:02"]

1. e4 {[%clk 0:03:00]}  c6 {[%clk 0:02:58]} 2. Nf3 {[%clk 0:02:55]}  d5 {[%clk 0:02:59]} 3. Nc3 {[%clk 0:02:55]}  Nf6 {[%clk 0:02:57]} 4. e5 {[%clk 0:02:56]}  Ne4 {[%clk 0:02:57]} 5. Ne2 {[%clk 0:02:56]}  Bg4 {[%clk 0:02:54]} 6. d4 {[%clk 0:02:35]}  e6 {[%clk 0:02:53]} 7. Nfg1 {[%clk 0:02:34]}  Bxe2 {[%clk 0:02:21]} 8. Bxe2 {[%clk 0:02:31]}  c5 {[%clk 0:02:07]} 9. Nf3 {[%clk 0:02:04]}  Nc6 {[%clk 0:02:06]} 10. O-O {[%clk 0:01:58]}  Qb6 {[%clk 0:01:58]} 11. c3 {[%clk 0:01:55]}  cxd4 {[%clk 0:01:56]} 12. cxd4 {[%clk 0:01:56]}  Be7 {[%clk 0:01:52]} 13. Be3 {[%clk 0:01:36]}  O-O {[%clk 0:01:48]} 14. Bd3 {[%clk 0:01:30]}  f5 {[%clk 0:01:46]} 15. exf6 {[%clk 0:01:28]}  Nxf6 {[%clk 0:01:29]} 16. h3 {[%clk 0:00:59]}  Bd6 {[%clk 0:01:27]} 17. a3 {[%clk 0:00:58]}  Rae8 {[%clk 0:01:24]} 18. b4 {[%clk 0:00:57]}  a6 {[%clk 0:01:22]} 19. Rc1 {[%clk 0:00:57]}  h6 {[%clk 0:00:51]} 20. Ne5 {[%clk 0:00:57]}  Bxe5 {[%clk 0:00:32]} 21. dxe5 {[%clk 0:00:55]}  d4 {[%clk 0:00:33]} 22. exf6 {[%clk 0:00:19]}  dxe3 {[%clk 0:00:32]} 23. Qh5 {[%clk 0:00:20]}  exf2+ {[%clk 0:00:28]} 24. Kh1 {[%clk 0:00:19]}  Rd8 {[%clk 0:00:19]} 25. fxg7 {[%clk 0:00:14]}  Rf6 {[%clk 0:00:18]} 26. Rcd1 {[%clk 0:00:12]}  Qe3 {[%clk 0:00:13]} 27. Qh4 {[%clk 0:00:07]}  Kxg7 {[%clk 0:00:11]} 28. Bc2 {[%clk 0:00:06]}  Rxd1 {[%clk 0:00:10]} 29. Bxd1 {[%clk 0:00:07]}  Ne5 {[%clk 0:00:09]} 30. Qh5 {[%clk 0:00:06]}  Ng6 {[%clk 0:00:08]} 31. Bf3 {[%clk 0:00:05]}  Nf4 {[%clk 0:00:07]} 32. Qg4+ {[%clk 0:00:05]}  Rg6 {[%clk 0:00:08]} 33. Qh4 {[%clk 0:00:06]}  Nd3 {[%clk 0:00:06]} 34. Qc4 {[%clk 0:00:04]}  Rf6 {[%clk 0:00:05]} 35. Qc3 {[%clk 0:00:05]}  Qe1 {[%clk 0:00:02]} 36. Qxd3 {[%clk 0:00:04]}  e5 {[%clk 0:00:02]} 37. Kh2 {[%clk 0:00:04]}  e4 {[%clk 0:00:02]} 38. Bxe4 {[%clk 0:00:02]} 1-0


[Site "https://www.chess.com"]